[Event "Titled Tuesday Blitz May 24 Early 2022"]
[White "Papasimakopoulos, Alexandros"]
[Black "Ferreira, Vitor Hugo Vieira"]
[WhiteFideId "4244125"]
[BlackFideId "2119765"]
[WhiteElo "2726"]
[BlackElo "2504"]
[Result "1-0"]
[Round "05"]
[TimeControl "180+1"]
[Date "2022.05.25"]
[WhiteClock "0:00:20"]
[BlackClock "0:00:01"]

1. d4 {[%clk 0:03:00]}  d5 {[%clk 0:02:55]} 2. c4 {[%clk 0:03:01]}  c6 {[%clk 0:02:55]} 3. cxd5 {[%clk 0:03:00]}  cxd5 {[%clk 0:02:55]} 4. Bf4 {[%clk 0:03:01]}  Nc6 {[%clk 0:02:54]} 5. Nc3 {[%clk 0:03:01]}  Nf6 {[%clk 0:02:53]} 6. e3 {[%clk 0:03:01]}  Bf5 {[%clk 0:02:53]} 7. Qb3 {[%clk 0:03:00]}  Na5 {[%clk 0:02:52]} 8. Qa4+ {[%clk 0:03:00]}  Bd7 {[%clk 0:02:52]} 9. Qc2 {[%clk 0:03:00]}  Rc8 {[%clk 0:02:51]} 10. Nf3 {[%clk 0:02:59]}  a6 {[%clk 0:02:51]} 11. Bd3 {[%clk 0:02:59]}  e6 {[%clk 0:02:49]} 12. O-O {[%clk 0:02:54]}  Be7 {[%clk 0:02:43]} 13. h3 {[%clk 0:02:54]}  O-O {[%clk 0:02:43]} 14. Ne5 {[%clk 0:02:54]}  Nc6 {[%clk 0:02:42]} 15. Qe2 {[%clk 0:02:49]}  Nxe5 {[%clk 0:02:40]} 16. Bxe5 {[%clk 0:02:48]}  Ne8 {[%clk 0:02:39]} 17. Rac1 {[%clk 0:02:46]}  Nd6 {[%clk 0:02:35]} 18. Rc2 {[%clk 0:02:32]}  b5 {[%clk 0:02:35]} 19. Rfc1 {[%clk 0:02:28]}  Nc4 {[%clk 0:02:35]} 20. Bg3 {[%clk 0:02:25]}  Qb6 {[%clk 0:02:34]} 21. e4 {[%clk 0:02:07]}  dxe4 {[%clk 0:02:25]} 22. Bxe4 {[%clk 0:01:47]}  Qxd4 {[%clk 0:02:12]} 23. Rd1 {[%clk 0:01:45]}  Qa7 {[%clk 0:02:12]} 24. Bxh7+ {[%clk 0:01:37]}  Kxh7 {[%clk 0:02:12]} 25. Qd3+ {[%clk 0:01:38]}  Kg8 {[%clk 0:02:11]} 26. Qxd7 {[%clk 0:01:38]}  Qxd7 {[%clk 0:02:12]} 27. Rxd7 {[%clk 0:01:39]}  Bf6 {[%clk 0:02:12]} 28. Bc7 {[%clk 0:01:19]}  Nxb2 {[%clk 0:01:58]} 29. Ne4 {[%clk 0:01:10]}  Nc4 {[%clk 0:01:51]} 30. Nxf6+ {[%clk 0:01:09]}  gxf6 {[%clk 0:01:51]} 31. Rc3 {[%clk 0:01:08]}  Rfe8 {[%clk 0:01:44]} 32. Rg3+ {[%clk 0:01:03]}  Kf8 {[%clk 0:01:44]} 33. Bf4 {[%clk 0:01:03]}  Re7 {[%clk 0:01:28]} 34. Rd4 {[%clk 0:00:48]}  Rec7 {[%clk 0:01:12]} 35. Bxc7 {[%clk 0:00:47]}  Rxc7 {[%clk 0:01:11]} 36. Rd8+ {[%clk 0:00:41]}  Ke7 {[%clk 0:01:12]} 37. Rgg8 {[%clk 0:00:38]}  f5 {[%clk 0:01:10]} 38. Ra8 {[%clk 0:00:36]}  Rc6 {[%clk 0:01:10]} 39. h4 {[%clk 0:00:37]}  Ne5 {[%clk 0:01:08]} 40. h5 {[%clk 0:00:26]}  Ng4 {[%clk 0:01:08]} 41. Rxg4 {[%clk 0:00:27]}  fxg4 {[%clk 0:01:06]} 42. h6 {[%clk 0:00:28]}  Rc1+ {[%clk 0:00:48]} 43. Kh2 {[%clk 0:00:27]}  Rc5 {[%clk 0:00:49]} 44. Rh8 {[%clk 0:00:16]}  Rh5+ {[%clk 0:00:50]} 45. Kg3 {[%clk 0:00:17]}  Kf6 {[%clk 0:00:50]} 46. h7 {[%clk 0:00:17]}  Kg7 {[%clk 0:00:49]} 47. Ra8 {[%clk 0:00:17]}  Kxh7 {[%clk 0:00:45]} 48. Kxg4 {[%clk 0:00:16]}  Rf5 {[%clk 0:00:42]} 49. f4 {[%clk 0:00:14]}  b4 {[%clk 0:00:35]} 50. Rxa6 {[%clk 0:00:14]}  Rb5 {[%clk 0:00:35]} 51. Ra7 {[%clk 0:00:12]}  Kg6 {[%clk 0:00:35]} 52. g3 {[%clk 0:00:12]}  Rc5 {[%clk 0:00:30]} 53. Kh4 {[%clk 0:00:09]}  Rc2 {[%clk 0:00:25]} 54. Kg4 {[%clk 0:00:06]}  Rc3 {[%clk 0:00:24]} 55. Ra6 {[%clk 0:00:06]}  f5+ {[%clk 0:00:15]} 56. Kh4 {[%clk 0:00:06]}  Kf6 {[%clk 0:00:14]} 57. Kh3 {[%clk 0:00:06]}  Rc1 {[%clk 0:00:13]} 58. Kg2 {[%clk 0:00:06]}  Rc3 {[%clk 0:00:09]} 59. Ra4 {[%clk 0:00:06]}  Rc2+ {[%clk 0:00:05]} 60. Kf3 {[%clk 0:00:06]}  Rb2 {[%clk 0:00:06]} 61. Ke3 {[%clk 0:00:05]}  b3 {[%clk 0:00:06]} 62. axb3 {[%clk 0:00:06]}  Rxb3+ {[%clk 0:00:07]} 63. Kf2 {[%clk 0:00:07]}  Rb2+ {[%clk 0:00:08]} 64. Kf3 {[%clk 0:00:07]}  Rb3+ {[%clk 0:00:08]} 65. Kg2 {[%clk 0:00:08]}  Rb2+ {[%clk 0:00:09]} 66. Kh3 {[%clk 0:00:09]}  Rb1 {[%clk 0:00:09]} 67. Ra8 {[%clk 0:00:09]}  Rh1+ {[%clk 0:00:09]} 68. Kg2 {[%clk 0:00:10]}  Rc1 {[%clk 0:00:10]} 69. Rf8+ {[%clk 0:00:10]}  Ke7 {[%clk 0:00:10]} 70. Rh8 {[%clk 0:00:11]}  Kf6 {[%clk 0:00:10]} 71. Rh6+ {[%clk 0:00:10]}  Kf7 {[%clk 0:00:11]} 72. Rh7+ {[%clk 0:00:11]}  Kf6 {[%clk 0:00:11]} 73. Ra7 {[%clk 0:00:10]}  Rc2+ {[%clk 0:00:10]} 74. Kf3 {[%clk 0:00:10]}  Rc3+ {[%clk 0:00:10]} 75. Kf2 {[%clk 0:00:11]}  Rc2+ {[%clk 0:00:11]} 76. Ke3 {[%clk 0:00:11]}  Rc3+ {[%clk 0:00:11]} 77. Kf2 {[%clk 0:00:11]}  Rc2+ {[%clk 0:00:11]} 78. Kf3 {[%clk 0:00:12]}  Rc3+ {[%clk 0:00:11]} 79. Kg2 {[%clk 0:00:12]}  Rc2+ {[%clk 0:00:08]} 80. Kh3 {[%clk 0:00:13]}  Rc1 {[%clk 0:00:08]} 81. Ra2 {[%clk 0:00:12]}  Rh1+ {[%clk 0:00:08]} 82. Kg2 {[%clk 0:00:11]}  Rc1 {[%clk 0:00:07]} 83. Rb2 {[%clk 0:00:11]}  Rd1 {[%clk 0:00:07]} 84. Rc2 {[%clk 0:00:11]}  Ra1 {[%clk 0:00:05]} 85. Kh3 {[%clk 0:00:12]}  Rh1+ {[%clk 0:00:05]} 86. Kg2 {[%clk 0:00:12]}  Ra1 {[%clk 0:00:06]} 87. Rb2 {[%clk 0:00:12]}  Rd1 {[%clk 0:00:06]} 88. Kf3 {[%clk 0:00:12]}  Rf1+ {[%clk 0:00:06]} 89. Ke3 {[%clk 0:00:13]}  Ra1 {[%clk 0:00:07]} 90. Rb3 {[%clk 0:00:13]}  Rg1 {[%clk 0:00:07]} 91. Kf2 {[%clk 0:00:13]}  Rc1 {[%clk 0:00:07]} 92. Kf3 {[%clk 0:00:14]}  Rf1+ {[%clk 0:00:07]} 93. Kg2 {[%clk 0:00:14]}  Rc1 {[%clk 0:00:08]} 94. Rd3 {[%clk 0:00:14]}  Rb1 {[%clk 0:00:08]} 95. Kh3 {[%clk 0:00:15]}  Rh1+ {[%clk 0:00:08]} 96. Kg2 {[%clk 0:00:14]}  Ra1 {[%clk 0:00:09]} 97. Re3 {[%clk 0:00:15]}  Ra2+ {[%clk 0:00:07]} 98. Kh3 {[%clk 0:00:15]}  Ra1 {[%clk 0:00:08]} 99. g4 {[%clk 0:00:16]}  fxg4+ {[%clk 0:00:04]} 100. Kxg4 {[%clk 0:00:17]}  Rg1+ {[%clk 0:00:04]} 101. Kf3 {[%clk 0:00:17]}  Rf1+ {[%clk 0:00:04]} 102. Kg3 {[%clk 0:00:17]}  Ra1 {[%clk 0:00:05]} 103. Re5 {[%clk 0:00:17]}  Ra3+ {[%clk 0:00:05]} 104. Kg4 {[%clk 0:00:18]}  Ra1 {[%clk 0:00:05]} 105. Rh5 {[%clk 0:00:18]}  Rg1+ {[%clk 0:00:05]} 106. Kf3 {[%clk 0:00:18]}  Rf1+ {[%clk 0:00:06]} 107. Ke3 {[%clk 0:00:19]}  Re1+ {[%clk 0:00:06]} 108. Kf2 {[%clk 0:00:19]}  Ra1 {[%clk 0:00:06]} 109. Rb5 {[%clk 0:00:19]}  Ra2+ {[%clk 0:00:07]} 110. Kg3 {[%clk 0:00:20]}  Ra3+ {[%clk 0:00:07]} 111. Kg4 {[%clk 0:00:20]}  Ra4 {[%clk 0:00:07]} 112. Rb6 {[%clk 0:00:20]}  Rc4 {[%clk 0:00:06]} 113. Rb8 {[%clk 0:00:21]}  Ra4 {[%clk 0:00:06]} 114. Rf8+ {[%clk 0:00:21]}  Ke7 {[%clk 0:00:06]} 115. Rh8 {[%clk 0:00:22]}  Kf6 {[%clk 0:00:06]} 116. Rh7 {[%clk 0:00:22]}  Rb4 {[%clk 0:00:05]} 117. Rh6+ {[%clk 0:00:22]}  Kf7 {[%clk 0:00:06]} 118. Kg5 {[%clk 0:00:22]}  Rb5+ {[%clk 0:00:06]} 119. Kg4 {[%clk 0:00:22]}  Rf5 {[%clk 0:00:07]} 120. Rh7+ {[%clk 0:00:23]}  Kf6 {[%clk 0:00:07]} 121. Rh8 {[%clk 0:00:23]}  Kf7 {[%clk 0:00:06]} 122. Rh1 {[%clk 0:00:23]}  Rf6 {[%clk 0:00:06]} 123. Ra1 {[%clk 0:00:20]}  Rg6+ {[%clk 0:00:07]} 124. Kf3 {[%clk 0:00:21]}  Rf6 {[%clk 0:00:07]} 125. Ke4 {[%clk 0:00:21]}  Rf5 {[%clk 0:00:07]} 126. Rh1 {[%clk 0:00:22]}  Kf6 {[%clk 0:00:06]} 127. Rh6+ {[%clk 0:00:22]}  Kf7 {[%clk 0:00:07]} 128. Rh7+ {[%clk 0:00:22]}  Kf6 {[%clk 0:00:07]} 129. Rh8 {[%clk 0:00:22]}  Kf7 {[%clk 0:00:06]} 130. Ra8 {[%clk 0:00:20]}  Kf6 {[%clk 0:00:07]} 131. Rf8+ {[%clk 0:00:19]}  Kg6 {[%clk 0:00:01]} 132. Rxf5 {[%clk 0:00:19]}  exf5+ {[%clk 0:00:02]} 133. Ke5 {[%clk 0:00:20]}  Kg7 {[%clk 0:00:01]} 134. Kd5 {[%clk 0:00:20]} 1-0


[Site "https://www.chess.com"]

[Event "Titled Tuesday Blitz May 24 Early 2022"]
[White "Paravyan, David"]
[Black "Bagrationi, Alexander"]
[WhiteFideId "4194985"]
[BlackFideId "14104954"]
[WhiteElo "2569"]
[BlackElo "2502"]
[Result "1-0"]
[Round "05"]
[TimeControl "180+1"]
[Date "2022.05.24"]
[WhiteClock "0:02:13"]
[BlackClock "0:01:44"]

1. e4 {[%clk 0:03:00]}  e5 {[%clk 0:02:56]} 2. Nf3 {[%clk 0:03:00]}  Nc6 {[%clk 0:02:56]} 3. Nc3 {[%clk 0:03:00]}  d6 {[%clk 0:02:50]} 4. d4 {[%clk 0:02:59]}  exd4 {[%clk 0:02:49]} 5. Nxd4 {[%clk 0:03:00]}  Nf6 {[%clk 0:02:49]} 6. Bf4 {[%clk 0:02:53]}  Be7 {[%clk 0:02:48]} 7. Qd2 {[%clk 0:02:53]}  Nxd4 {[%clk 0:02:47]} 8. Qxd4 {[%clk 0:02:53]}  O-O {[%clk 0:02:48]} 9. O-O-O {[%clk 0:02:53]}  Be6 {[%clk 0:02:47]} 10. f3 {[%clk 0:02:49]}  c5 {[%clk 0:02:43]} 11. Qd2 {[%clk 0:02:44]}  Qa5 {[%clk 0:02:42]} 12. Kb1 {[%clk 0:02:38]}  b6 {[%clk 0:02:00]} 13. g4 {[%clk 0:02:33]}  Rfd8 {[%clk 0:02:00]} 14. g5 {[%clk 0:02:28]}  Nh5 {[%clk 0:02:00]} 15. Be3 {[%clk 0:02:28]}  a6 {[%clk 0:01:56]} 16. Nd5 {[%clk 0:02:26]}  Bf8 {[%clk 0:01:51]} 17. Qxa5 {[%clk 0:02:23]}  bxa5 {[%clk 0:01:52]} 18. a4 {[%clk 0:02:13]}  g6 {[%clk 0:01:44]} 1-0


[Site "https://www.chess.com"]

[Event "Titled Tuesday Blitz May 24 Early 2022"]
[White "Pein, Jonathan"]
[Black "Maksimovic, Bojan"]
[WhiteFideId "417092"]
[BlackFideId "14408120"]
[WhiteElo "2140"]
[BlackElo "2448"]
[Result "0-1"]
[Round "05"]
[TimeControl "180+1"]
[Date "2022.05.24"]
[WhiteClock "0:01:15"]
[BlackClock "0:01:01"]

1. e4 {[%clk 0:02:57]}  c5 {[%clk 0:03:00]} 2. Nf3 {[%clk 0:02:57]}  Nc6 {[%clk 0:03:00]} 3. d4 {[%clk 0:02:55]}  cxd4 {[%clk 0:03:01]} 4. Nxd4 {[%clk 0:02:55]}  Nf6 {[%clk 0:03:02]} 5. Nc3 {[%clk 0:02:54]}  e5 {[%clk 0:03:02]} 6. Nf5 {[%clk 0:02:55]}  d6 {[%clk 0:02:43]} 7. Bg5 {[%clk 0:02:54]}  Bxf5 {[%clk 0:02:42]} 8. exf5 {[%clk 0:02:54]}  Be7 {[%clk 0:02:42]} 9. Bc4 {[%clk 0:02:53]}  O-O {[%clk 0:02:40]} 10. O-O {[%clk 0:02:47]}  Nd4 {[%clk 0:02:40]} 11. Qd3 {[%clk 0:02:28]}  Nd7 {[%clk 0:02:36]} 12. Bxe7 {[%clk 0:02:27]}  Qxe7 {[%clk 0:02:37]} 13. Nd5 {[%clk 0:02:27]}  Qg5 {[%clk 0:02:31]} 14. c3 {[%clk 0:02:28]}  Nc5 {[%clk 0:02:29]} 15. Qh3 {[%clk 0:02:18]}  Nc6 {[%clk 0:02:07]} 16. Rad1 {[%clk 0:02:16]}  e4 {[%clk 0:02:03]} 17. f6 {[%clk 0:02:13]}  Ne5 {[%clk 0:01:47]} 18. fxg7 {[%clk 0:02:10]}  Kxg7 {[%clk 0:01:46]} 19. Ne3 {[%clk 0:02:08]}  Nxc4 {[%clk 0:01:34]} 20. Nxc4 {[%clk 0:02:05]}  d5 {[%clk 0:01:34]} 21. Ne3 {[%clk 0:02:04]}  Nd3 {[%clk 0:01:34]} 22. f4 {[%clk 0:01:58]}  Nxf4 {[%clk 0:01:13]} 23. Rxf4 {[%clk 0:01:23]}  Qxf4 {[%clk 0:01:13]} 24. Nxd5 {[%clk 0:01:22]}  Qg5 {[%clk 0:01:09]} 25. Rf1 {[%clk 0:01:15]}  Qxd5 {[%clk 0:01:01]} 0-1


[Site "https://www.chess.com"]

[Event "Titled Tuesday Blitz May 24 Early 2022"]
[White "Perera Alfonso, Rene Humberto"]
[Black "Li, Zhuoling"]
[WhiteFideId "3514722"]
[BlackFideId "8605629"]
[WhiteElo "2313"]
[BlackElo "2346"]
[Result "1-0"]
[Round "05"]
[TimeControl "180+1"]
[Date "2022.05.25"]
[WhiteClock "0:01:46"]
[BlackClock "0:00:07"]

1. e4 {[%clk 0:02:59]}  c5 {[%clk 0:02:59]} 2. Nf3 {[%clk 0:02:59]}  Nc6 {[%clk 0:02:59]} 3. d4 {[%clk 0:02:59]}  cxd4 {[%clk 0:03:00]} 4. Nxd4 {[%clk 0:02:59]}  e5 {[%clk 0:02:59]} 5. Nb5 {[%clk 0:02:58]}  d6 {[%clk 0:03:00]} 6. N1c3 {[%clk 0:02:58]}  a6 {[%clk 0:03:00]} 7. Na3 {[%clk 0:02:58]}  b5 {[%clk 0:03:00]} 8. Nd5 {[%clk 0:02:58]}  Nge7 {[%clk 0:03:00]} 9. c4 {[%clk 0:02:57]}  Nd4 {[%clk 0:02:59]} 10. Bd3 {[%clk 0:02:55]}  Nxd5 {[%clk 0:02:57]} 11. cxd5 {[%clk 0:02:55]}  Be7 {[%clk 0:02:56]} 12. O-O {[%clk 0:02:55]}  O-O {[%clk 0:02:56]} 13. Nc2 {[%clk 0:02:50]}  Nxc2 {[%clk 0:02:55]} 14. Qxc2 {[%clk 0:02:49]}  Bd7 {[%clk 0:02:55]} 15. Be3 {[%clk 0:02:48]}  Rc8 {[%clk 0:02:53]} 16. Qe2 {[%clk 0:02:46]}  f5 {[%clk 0:02:35]} 17. exf5 {[%clk 0:02:42]}  Bxf5 {[%clk 0:02:34]} 18. Rfc1 {[%clk 0:02:42]}  Qd7 {[%clk 0:02:30]} 19. a4 {[%clk 0:02:40]}  Bxd3 {[%clk 0:02:20]} 20. Qxd3 {[%clk 0:02:41]}  bxa4 {[%clk 0:02:20]} 21. Qxa6 {[%clk 0:02:40]}  Rxc1+ {[%clk 0:02:10]} 22. Rxc1 {[%clk 0:02:41]}  Rb8 {[%clk 0:01:56]} 23. Rc2 {[%clk 0:02:28]}  h6 {[%clk 0:01:47]} 24. h3 {[%clk 0:02:28]}  Qf5 {[%clk 0:01:46]} 25. Qxa4 {[%clk 0:02:22]}  Qd3 {[%clk 0:01:27]} 26. Rd2 {[%clk 0:02:21]}  Qb1+ {[%clk 0:01:22]} 27. Kh2 {[%clk 0:02:18]}  Rxb2 {[%clk 0:01:21]} 28. Qe8+ {[%clk 0:02:18]}  Bf8 {[%clk 0:01:20]} 29. Qe6+ {[%clk 0:02:17]}  Kh7 {[%clk 0:01:14]} 30. Rxb2 {[%clk 0:02:00]}  Qxb2 {[%clk 0:01:13]} 31. Qe8 {[%clk 0:02:01]}  Kg8 {[%clk 0:01:09]} 32. Qe6+ {[%clk 0:01:56]}  Kh7 {[%clk 0:01:07]} 33. Qf7 {[%clk 0:01:55]}  Qb8 {[%clk 0:01:04]} 34. g4 {[%clk 0:01:55]}  Qd8 {[%clk 0:00:59]} 35. Bxh6 {[%clk 0:01:53]}  Qe7 {[%clk 0:00:35]} 36. Qf5+ {[%clk 0:01:52]}  Kg8 {[%clk 0:00:27]} 37. Bg5 {[%clk 0:01:52]}  Qf7 {[%clk 0:00:25]} 38. Qxf7+ {[%clk 0:01:52]}  Kxf7 {[%clk 0:00:25]} 39. Kg2 {[%clk 0:01:52]}  Kg6 {[%clk 0:00:24]} 40. Bd8 {[%clk 0:01:52]}  Kf7 {[%clk 0:00:22]} 41. Kf3 {[%clk 0:01:51]}  g6 {[%clk 0:00:22]} 42. Bg5 {[%clk 0:01:47]}  Bg7 {[%clk 0:00:20]} 43. Ke4 {[%clk 0:01:47]}  Bf8 {[%clk 0:00:19]} 44. h4 {[%clk 0:01:47]}  Kg7 {[%clk 0:00:16]} 45. h5 {[%clk 0:01:47]}  Kh7 {[%clk 0:00:14]} 46. f4 {[%clk 0:01:45]}  exf4 {[%clk 0:00:09]} 47. Bxf4 {[%clk 0:01:46]}  gxh5 {[%clk 0:00:08]} 48. gxh5 {[%clk 0:01:46]}  Be7 {[%clk 0:00:08]} 49. Kf5 {[%clk 0:01:46]}  Kg7 {[%clk 0:00:07]} 50. Ke6 {[%clk 0:01:45]}  Kf8 {[%clk 0:00:07]} 51. Bxd6 {[%clk 0:01:45]}  Bxd6 {[%clk 0:00:07]} 52. Kxd6 {[%clk 0:01:46]} 1-0


[Site "https://www.chess.com"]

[Event "Titled Tuesday Blitz May 24 Early 2022"]
[White "Petre, Nad-Titus"]
[Black "Skuhala, Barbara"]
[WhiteFideId "1204165"]
[BlackFideId "14605465"]
[WhiteElo "2354"]
[BlackElo "2155"]
[Result "1-0"]
[Round "05"]
[TimeControl "180+1"]
[Date "2022.05.25"]
[WhiteClock "0:00:23"]
[BlackClock "0:00:39"]

1. e4 {[%clk 0:03:00]}  c5 {[%clk 0:02:59]} 2. Nc3 {[%clk 0:03:00]}  a6 {[%clk 0:02:59]} 3. g3 {[%clk 0:03:00]}  b6 {[%clk 0:02:59]} 4. Bg2 {[%clk 0:03:00]}  b5 {[%clk 0:03:00]} 5. d3 {[%clk 0:02:56]}  Bb7 {[%clk 0:03:00]} 6. Nh3 {[%clk 0:02:53]}  e6 {[%clk 0:02:58]} 7. O-O {[%clk 0:02:53]}  d6 {[%clk 0:02:58]} 8. f4 {[%clk 0:02:53]}  Nc6 {[%clk 0:02:58]} 9. f5 {[%clk 0:02:50]}  e5 {[%clk 0:02:57]} 10. Nd5 {[%clk 0:02:23]}  Nf6 {[%clk 0:02:56]} 11. Bg5 {[%clk 0:02:20]}  Be7 {[%clk 0:02:54]} 12. Bxf6 {[%clk 0:02:16]}  Bxf6 {[%clk 0:02:53]} 13. g4 {[%clk 0:02:05]}  h6 {[%clk 0:02:52]} 14. c3 {[%clk 0:01:56]}  Ne7 {[%clk 0:02:52]} 15. Nxf6+ {[%clk 0:01:52]}  gxf6 {[%clk 0:02:51]} 16. Nf2 {[%clk 0:01:47]}  Qb6 {[%clk 0:02:49]} 17. Bf3 {[%clk 0:01:42]}  O-O-O {[%clk 0:02:48]} 18. Qe2 {[%clk 0:01:37]}  d5 {[%clk 0:02:45]} 19. a4 {[%clk 0:01:34]}  b4 {[%clk 0:02:45]} 20. Rfc1 {[%clk 0:01:28]}  Kb8 {[%clk 0:02:43]} 21. a5 {[%clk 0:01:25]}  Qb5 {[%clk 0:02:42]} 22. exd5 {[%clk 0:01:24]}  h5 {[%clk 0:02:37]} 23. c4 {[%clk 0:01:16]}  Qd7 {[%clk 0:02:36]} 24. h3 {[%clk 0:01:17]}  Rdg8 {[%clk 0:02:36]} 25. Kf1 {[%clk 0:01:12]}  hxg4 {[%clk 0:02:35]} 26. hxg4 {[%clk 0:01:10]}  Rh2 {[%clk 0:02:05]} 27. Qe3 {[%clk 0:01:09]}  Rgh8 {[%clk 0:01:35]} 28. Ke2 {[%clk 0:01:08]}  Nc8 {[%clk 0:01:28]} 29. Rh1 {[%clk 0:01:07]}  Nd6 {[%clk 0:01:23]} 30. Rxh2 {[%clk 0:01:05]}  Rxh2 {[%clk 0:01:24]} 31. Qxc5 {[%clk 0:00:54]}  e4 {[%clk 0:01:21]} 32. dxe4 {[%clk 0:00:46]}  Qe7 {[%clk 0:01:14]} 33. Rh1 {[%clk 0:00:43]}  Rxh1 {[%clk 0:01:14]} 34. Bxh1 {[%clk 0:00:39]}  Qe5 {[%clk 0:01:11]} 35. Kf1 {[%clk 0:00:38]}  Nc8 {[%clk 0:01:07]} 36. Qxb4 {[%clk 0:00:36]}  Qd4 {[%clk 0:01:07]} 37. Qc3 {[%clk 0:00:30]}  Qc5 {[%clk 0:01:06]} 38. b4 {[%clk 0:00:28]}  Qe7 {[%clk 0:01:05]} 39. Bf3 {[%clk 0:00:26]}  Qe8 {[%clk 0:00:59]} 40. Kg2 {[%clk 0:00:23]}  Ne7 {[%clk 0:00:58]} 41. Qxf6 {[%clk 0:00:22]}  Ng8 {[%clk 0:00:56]} 42. Qd6+ {[%clk 0:00:21]}  Ka8 {[%clk 0:00:56]} 43. e5 {[%clk 0:00:22]}  Qc8 {[%clk 0:00:49]} 44. c5 {[%clk 0:00:23]}  Qe8 {[%clk 0:00:48]} 45. c6 {[%clk 0:00:23]}  Bc8 {[%clk 0:00:47]} 46. c7 {[%clk 0:00:21]}  Qb5 {[%clk 0:00:41]} 47. Qb6 {[%clk 0:00:20]}  Qxb6 {[%clk 0:00:41]} 48. axb6 {[%clk 0:00:21]}  Bb7 {[%clk 0:00:40]} 49. d6 {[%clk 0:00:21]}  Bxf3+ {[%clk 0:00:39]} 50. Kxf3 {[%clk 0:00:22]}  Kb7 {[%clk 0:00:39]} 51. d7 {[%clk 0:00:23]} 1-0


[Site "https://www.chess.com"]

[Event "Titled Tuesday Blitz May 24 Early 2022"]
[White "Petrova, Irina"]
[Black "Castaneda, Jhon David"]
[WhiteFideId "14124122"]
[BlackFideId "4405048"]
[WhiteElo "1993"]
[BlackElo "2152"]
[Result "0-1"]
[Round "05"]
[TimeControl "180+1"]
[Date "2022.05.25"]
[WhiteClock "0:00:02"]
[BlackClock "0:00:24"]

1. e4 {[%clk 0:03:00]}  c5 {[%clk 0:02:59]} 2. Nf3 {[%clk 0:03:01]}  Nc6 {[%clk 0:02:58]} 3. Bb5 {[%clk 0:03:00]}  g6 {[%clk 0:02:58]} 4. Bxc6 {[%clk 0:03:01]}  dxc6 {[%clk 0:02:59]} 5. d3 {[%clk 0:03:00]}  Bg7 {[%clk 0:02:59]} 6. Nc3 {[%clk 0:03:01]}  Nf6 {[%clk 0:03:00]} 7. Be3 {[%clk 0:03:01]}  Nd7 {[%clk 0:03:00]} 8. Qd2 {[%clk 0:03:01]}  h6 {[%clk 0:03:00]} 9. O-O {[%clk 0:03:00]}  e5 {[%clk 0:03:01]} 10. h3 {[%clk 0:03:00]}  Qe7 {[%clk 0:03:00]} 11. Nh2 {[%clk 0:02:57]}  Nf8 {[%clk 0:02:59]} 12. f4 {[%clk 0:02:55]}  exf4 {[%clk 0:03:00]} 13. Bxf4 {[%clk 0:02:56]}  Bd4+ {[%clk 0:02:57]} 14. Kh1 {[%clk 0:02:43]}  g5 {[%clk 0:02:57]} 15. Be3 {[%clk 0:02:42]}  Be6 {[%clk 0:02:52]} 16. Nd1 {[%clk 0:02:27]}  O-O-O {[%clk 0:02:49]} 17. c3 {[%clk 0:02:27]}  Bxe3 {[%clk 0:02:43]} 18. Nxe3 {[%clk 0:02:20]}  Qd7 {[%clk 0:02:33]} 19. Rad1 {[%clk 0:02:16]}  Ng6 {[%clk 0:02:25]} 20. Qf2 {[%clk 0:02:03]}  Kb8 {[%clk 0:02:10]} 21. d4 {[%clk 0:01:47]}  cxd4 {[%clk 0:02:07]} 22. cxd4 {[%clk 0:01:43]}  Bxa2 {[%clk 0:02:02]} 23. d5 {[%clk 0:01:41]}  cxd5 {[%clk 0:01:27]} 24. exd5 {[%clk 0:01:42]}  Bb3 {[%clk 0:01:22]} 25. Ra1 {[%clk 0:01:33]}  a6 {[%clk 0:01:19]} 26. Nhg4 {[%clk 0:01:27]}  Nf4 {[%clk 0:01:11]} 27. Qg3 {[%clk 0:01:12]}  Qc7 {[%clk 0:01:06]} 28. Rfc1 {[%clk 0:00:54]}  Qb6 {[%clk 0:01:05]} 29. Ne5 {[%clk 0:00:45]}  Ka7 {[%clk 0:00:54]} 30. N3c4 {[%clk 0:00:45]}  Bxc4 {[%clk 0:00:49]} 31. Nxc4 {[%clk 0:00:46]}  Qd4 {[%clk 0:00:49]} 32. Qb3 {[%clk 0:00:42]}  Rxd5 {[%clk 0:00:44]} 33. Rd1 {[%clk 0:00:31]}  Qc5 {[%clk 0:00:44]} 34. Rdc1 {[%clk 0:00:25]}  Rc8 {[%clk 0:00:34]} 35. Kh2 {[%clk 0:00:20]}  Qc7 {[%clk 0:00:32]} 36. Ne3 {[%clk 0:00:19]}  Rc5 {[%clk 0:00:31]} 37. Rxc5 {[%clk 0:00:14]}  Qxc5 {[%clk 0:00:32]} 38. Ng4 {[%clk 0:00:11]}  Qd6 {[%clk 0:00:31]} 39. Kh1 {[%clk 0:00:09]}  Rc6 {[%clk 0:00:29]} 40. Qxf7 {[%clk 0:00:08]}  Rb6 {[%clk 0:00:28]} 41. b3 {[%clk 0:00:05]}  Qc6 {[%clk 0:00:28]} 42. Rg1 {[%clk 0:00:04]}  Ne2 {[%clk 0:00:26]} 43. Ne5 {[%clk 0:00:02]}  Qe6 {[%clk 0:00:24]} 0-1


[Site "https://www.chess.com"]

[Event "Titled Tuesday Blitz May 24 Early 2022"]
[White "Petrovskyi, Vadym"]
[Black "Maksimenko, Viktor"]
[WhiteFideId "14165210"]
[BlackFideId "13710478"]
[WhiteElo "2400"]
[BlackElo "2269"]
[Result "1-0"]
[Round "05"]
[TimeControl "180+1"]
[Date "2022.05.24"]
[WhiteClock "0:00:04"]
[BlackClock "0:00:04"]

1. e4 {[%clk 0:03:00]}  c6 {[%clk 0:03:00]} 2. d4 {[%clk 0:03:00]}  d5 {[%clk 0:03:00]} 3. Nc3 {[%clk 0:03:01]}  dxe4 {[%clk 0:03:01]} 4. Nxe4 {[%clk 0:03:02]}  Nf6 {[%clk 0:03:01]} 5. Nxf6+ {[%clk 0:03:02]}  exf6 {[%clk 0:03:02]} 6. c3 {[%clk 0:03:03]}  Bd6 {[%clk 0:03:02]} 7. Bd3 {[%clk 0:03:04]}  O-O {[%clk 0:03:03]} 8. Qc2 {[%clk 0:03:05]}  Re8+ {[%clk 0:03:03]} 9. Ne2 {[%clk 0:03:06]}  h5 {[%clk 0:03:04]} 10. Be3 {[%clk 0:03:06]}  Nd7 {[%clk 0:03:05]} 11. O-O {[%clk 0:03:07]}  h4 {[%clk 0:03:03]} 12. h3 {[%clk 0:03:07]}  Nf8 {[%clk 0:03:04]} 13. Rfe1 {[%clk 0:03:07]}  Bd7 {[%clk 0:02:50]} 14. Rad1 {[%clk 0:03:06]}  Rc8 {[%clk 0:02:49]} 15. c4 {[%clk 0:03:06]}  Bb8 {[%clk 0:02:47]} 16. Qd2 {[%clk 0:02:35]}  g5 {[%clk 0:02:37]} 17. f4 {[%clk 0:02:31]}  g4 {[%clk 0:02:37]} 18. f5 {[%clk 0:02:17]}  gxh3 {[%clk 0:02:33]} 19. gxh3 {[%clk 0:02:16]}  Qc7 {[%clk 0:02:17]} 20. Kf1 {[%clk 0:01:53]}  Qh2 {[%clk 0:02:11]} 21. Ng1 {[%clk 0:01:52]}  Qg3 {[%clk 0:01:46]} 22. Re2 {[%clk 0:01:45]}  Kh8 {[%clk 0:01:46]} 23. Rde1 {[%clk 0:01:40]}  Nh7 {[%clk 0:01:06]} 24. Rg2 {[%clk 0:01:33]}  Qd6 {[%clk 0:01:06]} 25. Ree2 {[%clk 0:01:11]}  Rg8 {[%clk 0:01:04]} 26. Rxg8+ {[%clk 0:01:07]}  Rxg8 {[%clk 0:01:05]} 27. Rg2 {[%clk 0:01:07]}  Rg3 {[%clk 0:01:03]} 28. Qf2 {[%clk 0:00:56]}  Ng5 {[%clk 0:00:57]} 29. Rxg3 {[%clk 0:00:51]}  hxg3 {[%clk 0:00:58]} 30. Qe2 {[%clk 0:00:47]}  b5 {[%clk 0:00:41]} 31. h4 {[%clk 0:00:30]}  bxc4 {[%clk 0:00:40]} 32. Bxc4 {[%clk 0:00:22]}  Nh7 {[%clk 0:00:27]} 33. Qh5 {[%clk 0:00:21]}  Qe7 {[%clk 0:00:23]} 34. Ke2 {[%clk 0:00:13]}  Bf4 {[%clk 0:00:22]} 35. Qf3 {[%clk 0:00:11]}  Bh6 {[%clk 0:00:18]} 36. Bd3 {[%clk 0:00:09]}  g2 {[%clk 0:00:16]} 37. Kf2 {[%clk 0:00:07]}  Bxe3+ {[%clk 0:00:15]} 38. Qxe3 {[%clk 0:00:08]}  Qb4 {[%clk 0:00:15]} 39. b3 {[%clk 0:00:08]}  Qa3 {[%clk 0:00:11]} 40. Qe2 {[%clk 0:00:08]}  Qa5 {[%clk 0:00:10]} 41. Qc2 {[%clk 0:00:05]}  Qb4 {[%clk 0:00:09]} 42. Qb2 {[%clk 0:00:04]}  Qa5 {[%clk 0:00:08]} 43. Qc2 {[%clk 0:00:04]}  Qb4 {[%clk 0:00:08]} 44. Nf3 {[%clk 0:00:04]}  Qa5 {[%clk 0:00:02]} 45. Kxg2 {[%clk 0:00:05]}  Qd5 {[%clk 0:00:03]} 46. Kf2 {[%clk 0:00:05]}  Qd6 {[%clk 0:00:03]} 47. Qe2 {[%clk 0:00:05]}  Qf4 {[%clk 0:00:03]} 48. Qe4 {[%clk 0:00:06]}  Qd6 {[%clk 0:00:03]} 49. Ke3 {[%clk 0:00:05]}  Kg7 {[%clk 0:00:03]} 50. a4 {[%clk 0:00:04]}  Qe7 {[%clk 0:00:04]} 51. Qxe7 {[%clk 0:00:04]} 1-0


[Site "https://www.chess.com"]